bitfinex-derivatives/quotes_ETHF0:USTF0_20251001
["timestamp","ask_amount","ask_price","bid_price","bid_amount"]
[1759349713010,3.2078,4326.5,4326.4,1.7734]
[1759349713209,0.41581,4326.8,4326.4,3.28233765]
[1759349713410,1.3104,4326.7,4326.6,2.8752]
[1759349713615,2.1693,4326.7,4326.6,3.1422]
[1759349713809,0.5083,4327.0,4326.6,3.1422]
[1759349714006,2.67957977,4327.0,4326.9,2.8752]
[1759349714206,2.67957977,4327.0,4326.9,3.1422]
[1759349714414,1.31237977,4327.0,4326.9,3.1422]
[1759349714813,1.72816977,4327.0,4326.9,3.1422]
[1759349715013,1.31237977,4327.0,4326.9,3.1422]
[1759349715313,0.00197977,4327.0,4326.9,3.1422]
[1759349715514,0.00197977,4327.0,4326.9,43.9422]
[1759349717215,0.00197977,4327.0,4326.9,48.39193765]
[1759349717618,0.00197977,4327.0,4326.9,48.80773765]
[1759349718418,0.00197977,4327.0,4326.9,47.5658]
[1759349719022,0.00197977,4327.0,4326.9,52.5658]
[1759349721024,0.00197977,4327.0,4326.9,52.15]
[1759349721224,0.00197977,4327.0,4326.9,52.5658]
[1759349725025,0.00197977,4327.0,4326.9,88.6158]
[1759349725829,0.00197977,4327.0,4326.9,88.199]
[1759349726126,1.31047977,4327.0,4326.9,88.199]
[1759349726521,0.00197977,4327.0,4326.9,88.199]
[1759349726826,0.00197977,4327.0,4326.9,88.6148]
[1759349728624,3.4866,4329.0,4328.5,1.0572]
[1759349728825,2.9783,4328.6,4328.5,4.9246]
[1759349729130,2.9783,4328.6,4328.5,6.39831801]
[1759349729427,2.9783,4328.6,4328.5,47.0148]
[1759349729729,2.98029547,4328.6,4328.5,47.01675456]
[1759349729928,8.39593547,4328.6,4328.5,41.06595456]
[1759349730128,8.39593547,4328.6,4328.5,40.80195456]
[1759349730328,11.60373547,4328.6,4328.5,41.06595456]
[1759349734333,6.60373547,4328.6,4328.5,41.06595456]
[1759349735634,6.60373547,4328.6,4328.5,40.80195456]
[1759349735934,6.60373547,4328.6,4328.5,41.06595456]
[1759349736435,3.39593547,4328.6,4328.5,41.06595456]
[1759349738925,3.39593547,4328.6,4328.5,40.80195456]
[1759349739125,2.98029547,4328.6,4328.5,41.06595456]
[1759349739336,1.72613547,4328.6,4328.5,42.12315456]
[1759349739832,1.72613547,4328.6,4328.5,41.06595456]
[1759349742538,1.72613547,4328.6,4328.5,42.12315456]
[1759349742934,1.3085,4329.8,4329.7,1.7168]
[1759349743136,3.2078,4330.8,4329.9,0.8616]
[1759349743137,1.3085,4330.0,4329.9,0.8616]
[1759349743437,3.4765,4330.0,4329.9,1.9808]
[1759349743637,3.4765,4330.0,4329.9,42.7808]
[1759349744141,3.47837914,4330.0,4329.9,42.7808]
[1759349744344,3.47837914,4330.0,4329.9,43.836]
[1759349745940,0.00187914,4330.0,4329.9,44.25151]
[1759349746639,0.00187914,4330.0,4329.9,43.98751]
[1759349746942,0.00187914,4330.0,4329.9,44.25151]
[1759349749243,4.5163,4330.9,4330.8,2.7701]
[1759349749436,1.3085,4330.9,4330.8,6.2419]
[1759349750140,3.706,4331.5,4330.9,1.0533]
[1759349750141,0.41538,4331.3,4330.9,1.0533]
[1759349750442,2.98008127,4331.3,4331.2,1.7168]
[1759349750633,2.98008127,4331.3,4331.2,1.9808]
[1759349751234,0.022,4332.9,4332.8,3.0383]
[1759349751434,0.022,4332.9,4332.8,6.5101]
[1759349751743,1.6918,4332.9,4332.8,6.5101]
[1759349752239,1.6935313,4332.9,4332.8,6.24857547]
[1759349752440,6.6935313,4332.9,4332.8,0.26647547]
[1759349753338,8.0020313,4332.9,4332.8,0.26647547]
[1759349761150,8.0020313,4332.9,4332.8,0.00247547]
[1759349761451,8.0020313,4332.9,4332.8,0.26647547]
[1759349761946,8.4172513,4332.9,4332.8,1.52627547]
[1759349762148,8.4172513,4332.9,4332.8,3.20697547]
[1759349762342,3.4172513,4332.9,4332.8,3.20697547]
[1759349763351,0.8485313,4332.9,4332.8,3.20697547]
[1759349763945,1.2637513,4332.9,4332.8,3.62220547]
[1759349764444,1.2637513,4332.9,4332.8,3.20697547]
[1759349765649,1.2637513,4332.9,4332.8,3.62220547]
[1759349766250,1.2637513,4332.9,4332.8,3.20697547]
[1759349770557,3.3193513,4332.9,4332.8,1.26227547]
[1759349770760,3.3193513,4332.9,4332.8,0.26647547]
[1759349771157,3.3193513,4332.9,4332.8,0.00247547]
[1759349771357,3.3193513,4332.9,4332.8,0.26547547]
[1759349771964,3.3193513,4332.9,4332.8,0.00247547]
[1759349772264,3.3193513,4332.9,4332.8,1.52527547]
[1759349773766,3.3193513,4332.9,4332.8,2.37857547]
[1759349774863,3.3193513,4332.9,4332.8,1.52527547]
[1759349775455,3.3193513,4332.9,4332.8,0.26547547]
[1759349777463,3.3193513,4332.9,4332.8,2.37857547]
[1759349778063,6.9363513,4332.9,4332.8,2.37857547]
[1759349779167,5.6968513,4332.9,4332.8,3.20597547]
[1759349779370,6.17193082,4332.9,4332.8,3.20597547]
[1759349779762,7.41143082,4332.9,4332.8,3.20597547]
[1759349780165,6.17193082,4332.9,4332.8,3.20597547]
[1759349780368,7.46633082,4332.9,4332.8,3.20597547]
[1759349781366,5.35583082,4332.9,4332.8,3.62120547]
[1759349781567,0.49881082,4332.9,4332.8,3.62120547]
[1759349782070,0.0237313,4332.9,4332.8,3.62120547]
[1759349782267,0.0237313,4332.9,4332.8,4.85825125]
[1759349782470,0.0237313,4332.9,4332.8,6.82900547]
[1759349783267,3.2078,4333.9,4333.5,0.4996]
[1759349783567,3.2078,4333.9,4333.8,2.9088]
[1759349783568,4.0471,4333.9,4333.8,2.9088]
[1759349783774,4.93809895,4333.9,4333.8,3.1718]
[1759349784373,4.9397712,4333.9,4333.8,3.1718]
[1759349786174,1.3168312,4333.9,4333.8,3.1718]
[1759349786573,0.4775312,4333.9,4333.8,3.1718]
[1759349786773,0.41512,4334.0,4333.8,3.1718]
[1759349786774,4.8174,4334.5,4334.4,2.9033]
[1759349787074,6.9228059,4334.5,4334.4,2.3331]
[1759349787274,5.7078059,4334.5,4334.4,3.1663]
[1759349787480,5.2927359,4334.5,4334.4,3.1663]
[1759349787681,5.29470389,4334.5,4334.4,3.1663]
[1759349788074,4.81936799,4334.5,4334.4,3.1663]
[1759349788580,4.00316799,4334.5,4334.4,3.1663]
[1759349788773,3.20976799,4334.5,4334.4,3.1663]
[1759349790276,0.00196799,4334.5,4334.4,3.1663]
[1759349794881,0.79536799,4334.5,4334.4,3.1663]
[1759349796483,0.79536799,4334.5,4334.4,4.9031]
[1759349797480,1.61156799,4334.5,4334.4,4.9031]
[1759349798477,2.02663799,4334.5,4334.4,4.6401]
[1759349798682,0.79536799,4334.5,4334.4,4.9031]
[1759349798976,1.21043799,4334.5,4334.4,4.9031]
[1759349799174,0.00196799,4334.5,4334.4,5.31818]
[1759349799584,0.00196799,4334.5,4334.4,4.9031]
[1759349800986,0.41703799,4334.5,4334.4,8.1109]
[1759349802273,0.41703799,4334.5,4334.4,8.52598]
[1759349802677,0.00196799,4334.5,4334.4,8.52598]
[1759349802882,0.41703799,4334.5,4334.4,8.52598]
[1759349803785,0.00196799,4334.5,4334.4,8.52598]
[1759349804285,0.41703799,4334.5,4334.4,8.52598]
[1759349806681,0.41703799,4334.5,4334.4,8.52498]
[1759349806986,0.00196799,4334.5,4334.4,8.52498]
[1759349811076,0.00196799,4334.5,4334.4,9.76682488]
[1759349812181,1.21043799,4334.5,4334.4,9.08974488]
[1759349812384,1.21043799,4334.5,4334.4,9.35174488]
[1759349813189,0.00196799,4334.5,4334.4,9.76682488]
[1759349813783,0.41703799,4334.5,4334.4,9.76682488]
[1759349814187,0.41703799,4334.5,4334.4,8.52498]
[1759349814589,0.00196799,4334.5,4334.4,8.52498]
[1759349815291,0.41703799,4334.5,4334.4,8.52498]
[1759349816192,0.41703799,4334.5,4334.4,8.1099]
[1759349816491,1.26383799,4334.5,4334.4,8.1099]
[1759349816683,3.27993799,4334.5,4334.4,4.6401]
[1759349816881,8.27993799,4334.5,4334.4,4.45285897]
[1759349817190,8.67003799,4334.5,4334.4,1.7368]
[1759349817392,9.14689034,4334.5,4334.4,1.7368]
[1759349817784,9.14689034,4334.5,4334.4,2.9128]
[1759349817986,9.14689034,4334.5,4334.4,1.7368]
[1759349818585,9.14689034,4334.5,4333.8,1.24045897]
[1759349818586,0.41513,4333.9,4333.8,0.262]
[1759349818791,3.27803,4333.9,4333.8,2.2488]
[1759349818992,3.27803,4333.9,4333.8,0.262]
[1759349819193,3.27803,4333.9,4333.8,1.438]
[1759349819393,3.27803,4333.9,4333.8,2.2488]
[1759349820292,0.39206799,4334.5,4333.9,0.41513]
[1759349820593,0.39206799,4334.5,4334.0,3.5291]
[1759349820594,1.26191,4334.1,4334.0,3.5291]
[1759349820792,2.09041,4334.1,4334.0,3.5291]
[1759349821288,1.26191,4334.1,4334.0,3.5291]
[1759349821690,0.41508,4334.4,4334.3,1.176]
[1759349821892,2.09038,4334.4,4334.3,3.0466]
[1759349822092,3.27798,4334.4,4334.3,2.2488]
[1759349822896,3.27798,4334.4,4334.3,4.3852]
[1759349823393,3.27798,4334.4,4334.3,4.1232]
[1759349823597,3.27798,4334.4,4334.3,4.3852]
[1759349826099,3.27798,4334.4,4334.3,4.1232]
[1759349827802,8.53998,4334.4,4334.3,2.1364]
[1759349828197,5.8912442,4334.4,4334.3,4.1232]
[1759349828401,8.27798,4334.4,4334.3,4.1232]
[1759349829202,8.27798,4334.4,4334.3,3.3124]
[1759349829404,8.27798,4334.4,4334.3,4.921]
[1759349829602,8.27798,4334.4,4334.3,2.1364]
[1759349830905,1.26188,4334.4,4334.3,5.182]
[1759349831198,2.09038,4334.4,4334.3,5.182]
[1759349831601,3.27798,4334.4,4334.3,5.182]
[1759349834392,3.27798,4334.4,4334.3,2.1364]
[1759349834603,3.75389607,4334.4,4334.3,2.1364]
[1759349835506,3.75389607,4334.4,4334.3,2.1762]
[1759349836197,0.47591607,4334.4,4334.3,5.2218]
[1759349836405,0.41703799,4334.5,4334.4,3.19968]
[1759349837703,0.41703799,4334.5,4334.4,3.0456]
[1759349837904,0.41703799,4334.5,4334.4,3.46068]
[1759349838504,0.00196799,4334.5,4334.4,3.46068]
[1759349838900,0.41703799,4334.5,4334.4,3.46068]
[1759349839998,0.00196799,4334.5,4334.4,3.46068]
[1759349840704,0.41703799,4334.5,4334.4,3.46068]
[1759349841702,0.41703799,4334.5,4334.4,3.0456]
[1759349842301,0.41703799,4334.5,4334.4,3.46068]
[1759349848509,0.41703799,4334.5,4334.4,3.0456]
[1759349850213,0.41703799,4334.5,4334.4,3.46068]
[1759349850613,0.41703799,4334.5,4334.4,3.0456]
[1759349851016,0.41703799,4334.5,4334.4,3.46068]
[1759349852710,0.41703799,4334.5,4334.4,3.0456]
[1759349852915,0.41703799,4334.5,4334.4,3.46068]
[1759349853413,0.41703799,4334.5,4334.4,3.0456]
[1759349854313,0.41703799,4334.5,4334.4,3.46068]
[1759349855415,1.21533799,4334.5,4334.4,2.7846]
[1759349855617,3.25403799,4334.5,4334.4,3.0446]
[1759349855816,2.02103799,4334.5,4334.4,3.0446]
[1759349858814,1.21533799,4334.5,4334.4,4.28505897]
[1759349860321,0.41703799,4334.5,4334.4,4.28505897]
[1759349860714,1.21533799,4334.5,4334.4,4.28505897]
[1759349862515,1.21533799,4334.5,4334.4,4.32485897]
[1759349863921,1.21533799,4334.5,4334.4,6.46115897]
[1759349864628,3.25403799,4334.5,4334.4,6.46115897]
[1759349864823,3.25403799,4334.5,4334.4,5.2207]
[1759349865016,2.02103799,4334.5,4334.4,5.2207]
[1759349865320,2.02103799,4334.5,4334.4,6.46115897]
[1759349865822,3.25403799,4334.5,4334.4,6.46115897]
[1759349866324,0.41703799,4334.5,4334.4,6.46115897]
[1759349867621,1.21533799,4334.5,4334.4,5.39035897]
[1759349867828,3.25403799,4334.5,4334.4,5.66065897]
[1759349868022,0.89565493,4334.5,4334.4,5.2483]
[1759349868524,3.73265493,4334.5,4334.4,3.3521]
[1759349868821,3.73265493,4334.5,4334.4,4.4202]
[1759349869024,3.73265493,4334.5,4334.4,5.2483]
[1759349869320,0.48058493,4334.5,4334.4,5.66338]
[1759349869525,0.41703799,4334.5,4334.4,5.2483]
[1759349871728,0.41703799,4334.5,4334.4,4.9883]
[1759349871927,0.41703799,4334.5,4334.4,5.2473]
[1759349873322,0.89554113,4334.5,4334.4,5.2473]
[1759349875120,1.69384113,4334.5,4334.4,5.2473]
[1759349877930,0.89554113,4334.5,4334.4,5.2473]
[1759349878130,2.46894113,4334.5,4334.4,5.2473]
[1759349878332,0.89554113,4334.5,4334.4,5.2473]
[1759349882636,0.41703799,4334.5,4334.4,5.2473]
[1759349888037,0.41703799,4334.5,4334.4,5.66238]
[1759349888737,0.41703799,4334.5,4334.4,5.2473]
[1759349890640,0.41703799,4334.5,4333.5,1.53751]
[1759349890641,1.5734,4332.9,4332.8,4.92180152]
[1759349890834,1.5734,4332.9,4331.4,1.426]
[1759349890835,1.1798,4332.8,4331.4,1.426]
[1759349891142,3.2078,4331.9,4331.7,0.41533]
[1759349891340,3.2078,4332.4,4331.8,0.258]
[1759349891734,0.41529,4332.2,4331.8,0.258]
[1759349891935,3.62307,4332.4,4332.0,0.4153]
[1759349892141,3.62307,4332.4,4332.1,0.258]
[1759349892341,4.80287,4332.4,4332.1,0.258]
[1759349892644,1.9384,4332.2,4332.1,0.258]
[1759349892942,2.7532,4332.2,4332.1,0.258]
[1759349902849,6.3702,4332.2,4332.1,0.258]
[1759349903353,6.78549,4332.2,4332.1,0.258]
[1759349903947,5.6116,4332.2,4331.8,0.00210116]
[1759349904154,1.60222,4331.9,4331.8,0.00210116]
[1759349904453,2.38842,4331.9,4331.8,0.00210116]
[1759349904751,6.41182,4331.9,4331.8,0.00210116]
[1759349906648,6.41182,4331.9,4331.8,40.80210116]
[1759349906847,3.20402,4331.9,4331.8,40.80210116]
[1759349907049,6.41182,4331.9,4331.8,40.80210116]
[1759349907553,6.41182,4331.9,4331.8,0.00210116]
[1759349909053,1.60236,4330.4,4330.3,40.8]
[1759349909756,1.6018,4330.3,4330.2,0.258]
[1759349909950,2.79083135,4330.3,4330.2,0.26005441]
[1759349910448,2.79083135,4330.3,4330.2,41.06005441]
[1759349912447,1.18903135,4330.3,4330.2,41.06005441]
[1759349912761,1.18903135,4330.3,4330.2,0.26005441]
[1759349913252,1.97523135,4330.3,4330.2,0.26005441]
[1759349915659,3.20630135,4330.3,4330.2,0.26005441]
[1759349933262,3.77591283,4330.3,4330.2,0.26005441]
[1759349941669,3.77590299,4330.3,4330.2,0.26005441]
[1759349944370,3.77590299,4330.3,4330.2,0.25805441]
[1759349945169,0.41548,4330.2,4330.1,0.0312]
[1759349945374,2.5568,4328.5,4328.4,0.41565]
[1759349945574,2.5568,4328.5,4328.4,0.67165]
[1759349946177,3.3542,4328.5,4328.4,0.67415984]
[1759349946369,3.3542,4328.5,4328.4,0.25850984]
[1759349947073,3.3542,4328.5,4328.4,41.05850984]
[1759349947377,3.3542,4328.5,4328.4,41.19493917]
[1759349949581,3.3542,4328.5,4328.4,41.05850984]
[1759349951980,3.3542,4328.5,4328.4,41.47415984]
[1759349952882,3.3542,4328.5,4328.4,41.21815984]
[1759349953074,3.3542,4328.5,4328.4,41.47415984]
[1759349953281,0.4974,4329.0,4328.9,0.8285]
[1759349953581,3.2078,4329.3,4329.2,1.6668]
[1759349953884,3.2078,4329.3,4329.2,3.0534]
[1759349954081,3.2078,4329.3,4329.2,3.46898]
[1759349954677,3.2078,4329.8,4329.7,1.6668]
[1759349954886,3.2078,4329.8,4329.7,3.46893]
[1759349955275,3.2078,4329.8,4329.7,44.26893]
[1759349955481,4.437,4329.8,4329.7,43.8534]
[1759349958189,1.2292,4329.8,4329.7,43.8534]
[1759349960486,1.2292,4329.8,4329.7,42.7228]
[1759349960685,4.437,4329.8,4329.7,42.1591]
[1759349961385,4.437,4329.8,4329.7,2.9288]
[1759349961585,5.2508,4329.8,4329.7,2.9288]
[1759349966697,5.2508,4329.8,4329.7,3.34433]
[1759349967898,6.0855,4329.8,4329.7,1.8257]
[1759349970904,6.0855,4329.8,4329.7,2.24123]
[1759349976701,6.0855,4329.8,4329.7,1.8257]
[1759349978210,6.0855,4329.8,4329.7,2.24123]
[1759349978505,4.437,4329.8,4329.7,3.34003]
[1759349978707,5.2359,4329.8,4329.7,3.34003]
[1759349979005,0.4974,4331.0,4330.9,0.3904]
[1759349979307,2.0851,4331.0,4330.9,1.0358]
[1759349979603,2.0851,4331.0,4330.9,41.8358]
[1759349980004,2.08700678,4331.0,4330.9,41.8358]
[1759349980208,2.08700678,4331.0,4330.9,42.25121]
[1759349980710,2.08700678,4331.0,4330.9,42.39342712]
[1759349981104,3.27390678,4331.0,4330.9,42.39342712]
[1759349982106,3.27390678,4331.0,4330.9,41.97801712]
[1759349982404,1.68620678,4331.0,4330.9,42.63742712]
[1759349982795,1.68620678,4331.0,4330.9,42.39342712]
[1759349983906,0.7989,4331.5,4331.4,2.7757]
[1759349984107,0.7989,4331.5,4331.4,3.0297]
[1759349984803,0.80137579,4331.5,4331.4,3.0297]
[1759349985306,0.00247579,4331.5,4331.4,3.0297]
[1759349985608,0.80137579,4331.5,4331.4,3.0297]
[1759349985807,1.98827579,4331.5,4331.4,3.0297]
[1759349987110,3.19243579,4331.5,4331.4,3.0297]
[1759349987308,2.77707579,4331.5,4331.4,3.0297]
[1759349988214,1.1869,4332.3,4332.2,0.8342]
[1759349988412,3.18988,4332.3,4332.2,2.2608]
[1759349988617,3.18988,4332.3,4332.2,43.0608]
[1759349989208,3.19191383,4332.3,4332.2,43.06290689]
[1759349989504,2.77663383,4332.3,4332.2,43.06290689]
[1759349989707,3.19191383,4332.3,4332.2,43.06290689]
[1759349991115,2.77663383,4332.3,4332.2,43.06290689]
[1759349992618,1.98783383,4332.3,4332.2,43.06290689]
[1759349993010,2.40311383,4332.3,4332.2,43.06290689]
[1759349995910,2.40311383,4332.3,4332.2,40.80210689]
[1759349996117,3.17051383,4332.3,4332.2,0.25610689]
[1759350001217,3.17051383,4332.3,4332.2,1.02300689]
[1759350003422,3.17051383,4332.3,4332.2,0.25610689]
[1759350006624,3.17051383,4332.3,4332.2,1.02300689]
[1759350006922,1.98783383,4332.3,4332.2,6.23030689]
[1759350007321,2.75523383,4332.3,4332.2,6.23030689]
[1759350009827,2.75523383,4332.3,4332.2,6.64559689]
[1759350010737,0.5019,4333.0,4332.9,2.7664]
[1759350010738,2.8265,4333.0,4332.9,2.7664]
[1759350011023,3.70931,4333.0,4332.9,0.253]
[1759350011327,3.70931,4333.0,4332.9,41.053]
[1759350011629,3.71155587,4333.0,4332.9,41.053]
[1759350012627,3.71155587,4333.0,4332.9,0.253]
[1759350015328,4.27653303,4333.0,4332.9,0.253]
[1759350016823,2.8265,4332.3,4332.2,0.76900689]
[1759350017017,2.8265,4332.3,4332.2,1.02200689]
[1759350017220,2.8265,4332.3,4332.2,43.82150689]
[1759350020933,2.8265,4332.3,4332.2,47.02930689]
[1759350021231,2.0591,4332.3,4332.2,47.02930689]
[1759350021433,1.2615,4332.3,4332.2,47.44459689]
[1759350021635,2.37923,4332.8,4332.7,2.8124]
[1759350021932,2.37923,4332.8,4332.7,3.0654]
[1759350022234,3.19473,4332.8,4332.7,3.0654]
[1759350027237,3.19473,4332.8,4332.7,1.8833]
[1759350028037,3.19473,4332.8,4332.7,3.0681]
[1759350028437,0.00224587,4333.0,4332.9,0.41522]
[1759350028634,1.2166,4333.5,4333.4,1.5483]
[1759350028840,0.7659,4333.8,4333.7,0.7776]
[1759350029137,3.16643,4333.8,4333.7,43.7851]
[1759350029533,3.16849079,4333.8,4333.7,0.252]
[1759350031238,18.5347866,4333.8,4330.2,2.53051615]
[1759350031435,0.41553,4329.7,4329.6,1.1848]
[1759350031638,0.41559,4329.1,4329.0,2.0137]
[1759350032146,0.41559,4329.1,4329.0,2.2737]
[1759350032442,0.41754417,4329.1,4329.0,2.27663758]
[1759350032837,0.41754417,4329.1,4328.5,0.4654]
[1759350032838,0.41563,4328.6,4328.5,2.0137]
[1759350033040,3.62343,4328.6,4328.5,3.36669404]
[1759350033739,3.62343,4328.6,4328.5,4.55149404]
[1759350033939,3.62343,4328.6,4328.5,4.5538902]
[1759350034142,3.62343,4328.6,4328.5,1.65259616]
[1759350035336,0.41566,4328.3,4328.2,1.1848]
[1759350035542,0.41568,4328.1,4328.0,1.6502]
[1759350035741,3.62348,4328.1,4328.0,1.6502]
[1759350036441,3.62348,4328.1,4328.0,1.6519481]
[1759350039850,3.62348,4328.1,4328.0,3.2002481]
[1759350040643,4.32382648,4328.1,4328.0,3.2002481]
[1759350044847,4.32382648,4328.1,4328.0,3.4602481]
[1759350045649,3.2078,4325.6,4323.3,1.5483]
[1759350045855,0.4161,4323.7,4323.6,1.35299404]
[1759350046148,7.1057649,4323.7,4323.6,1.49221665]
[1759350046745,7.10782809,4323.7,4323.6,0.71749204]
[1759350046949,3.94042809,4323.7,4323.6,1.77009204]
[1759350047351,5.92292809,4323.7,4323.6,1.77009204]
[1759350047552,5.92292809,4323.7,4323.6,2.95489204]
[1759350048560,6.69172809,4323.7,4323.6,2.95489204]
[1759350049364,5.15702809,4323.7,4323.6,2.95489204]
[1759350049565,3.94042809,4323.7,4323.6,2.95489204]
[1759350049962,5.92292809,4323.7,4323.6,2.95489204]
[1759350051267,4.70632809,4323.7,4323.6,2.95489204]
[1759350052259,3.94042809,4323.7,4323.6,2.95489204]
[1759350052462,0.73262809,4323.7,4323.6,7.95489204]
[1759350054265,0.73262809,4323.7,4323.6,2.95489204]
[1759350055260,3.94042809,4323.7,4323.6,2.95489204]
[1759350056354,4.80812809,4323.7,4323.6,2.95489204]
[1759350058263,6.12712809,4323.7,4323.6,2.95489204]
[1759350059569,7.00612809,4323.7,4323.6,2.95489204]
[1759350060270,4.80812809,4323.7,4323.6,2.95489204]
[1759350061061,7.00612809,4323.7,4323.6,2.95489204]
[1759350062266,7.00612809,4323.7,4323.6,0.00287539]
[1759350062462,7.00612809,4323.7,4323.6,0.27387539]
[1759350062967,12.00612809,4323.7,4323.6,0.00287539]
[1759350063167,0.8677,4322.1,4322.0,2.2364]
[1759350063471,0.7305649,4322.1,4322.0,43.3064]
[1759350063659,0.7305649,4322.1,4322.0,44.6625]
[1759350063865,0.7305649,4322.1,4322.0,44.70276885]
[1759350064072,3.2078,4322.9,4322.0,44.70276885]
[1759350064073,6.2735,4322.9,4322.8,3.1271]
[1759350064262,6.87242246,4322.9,4322.8,3.3981]
[1759350064468,6.87242246,4322.9,4322.8,2.042]
[1759350064669,6.87242246,4322.9,4322.8,3.3981]
[1759350065566,6.87242246,4322.9,4322.8,2.042]
[1759350065762,0.59892246,4322.9,4322.8,7.042]
[1759350065965,2.2547,4324.5,4324.4,0.903]
[1759350066266,5.4625,4324.5,4324.4,41.074]
[1759350066872,5.46517805,4324.5,4324.4,41.074]
[1759350067075,5.46517805,4324.5,4324.4,42.4288]
[1759350067576,5.46517805,4324.5,4324.4,41.074]
[1759350068067,6.78417805,4324.5,4324.4,41.074]
[1759350070974,0.00267805,4324.5,4324.4,42.4288]
[1759350071370,1.32167805,4324.5,4324.4,42.4288]
[1759350074276,1.32167805,4324.5,4324.4,43.25243116]
[1759350074673,1.32167805,4324.5,4324.4,42.4288]
[1759350075773,1.82967805,4324.5,4324.4,42.4288]
[1759350076078,1.32167805,4324.5,4324.4,43.66424674]
[1759350080883,1.32167805,4324.5,4324.4,44.08028674]
[1759350081083,1.32167805,4324.5,4324.4,44.08743335]
[1759350081282,1.32167805,4324.5,4324.4,42.84484]
[1759350081477,0.00267805,4324.5,4324.4,42.84484]
[1759350081880,0.00267805,4324.5,4324.4,42.99678895]
[1759350086183,3.2078,4325.5,4325.4,1.6909]
[1759350086479,3.2078,4325.5,4325.4,3.2393]
[1759350086480,5.74353,4325.5,4325.4,3.2393]
[1759350087082,5.74603499,4325.5,4325.4,3.24178831]
[1759350088078,5.33010499,4325.5,4325.4,3.24178831]
[1759350088280,5.33010499,4325.5,4325.4,4.06986197]
[1759350088988,4.47920499,4325.5,4325.4,4.06986197]
[1759350089181,3.21030499,4325.5,4325.4,3.24178831]
[1759350089882,4.47920499,4325.5,4325.4,44.04178831]
[1759350091676,3.21030499,4325.5,4325.4,44.04178831]
[1759350092981,3.21030499,4325.5,4325.4,45.28389881]
[1759350094092,3.21030499,4325.5,4325.4,44.04178831]
[1759350094388,4.47920499,4325.5,4325.4,44.04178831]
[1759350095689,3.21030499,4325.5,4325.4,44.45772831]
[1759350095885,3.21030499,4325.5,4325.4,44.04178831]
[1759350096985,3.62623499,4325.5,4325.4,44.04178831]
[1759350097386,4.89513499,4325.5,4325.4,44.04178831]
[1759350102297,0.5318,4326.0,4325.4,85.34128831]
[1759350102484,1.8007,4326.0,4325.8,1.64301381]
[1759350102684,2.6516,4326.0,4325.9,0.264]
[1759350103391,2.6537886,4326.0,4325.9,0.264]
[1759350105092,1.61379748,4326.0,4325.9,0.264]
[1759350105298,2.14559748,4326.0,4325.9,0.264]
[1759350106801,1.8028886,4326.0,4325.9,0.67989]
[1759350107092,1.8028886,4326.0,4325.9,3.88769]
[1759350111400,2.54334171,4326.7,4326.1,1.03967]
[1759350111600,2.0572,4327.9,4326.6,3.2078]
[1759350111795,1.7647,4327.8,4327.7,3.2078]
[1759350112004,1.7647,4327.4,4327.1,1.64301381]
[1759350112306,0.5318,4327.5,4327.2,0.265]
[1759350112307,1.7647,4327.3,4327.2,0.265]
[1759350112496,1.7668591,4327.3,4327.2,41.065]
[1759350113604,3.0534591,4327.3,4327.2,41.065]
[1759350116206,3.0534591,4327.3,4327.2,42.30228423]
[1759350120704,3.0534591,4327.3,4327.2,42.30028423]
[1759350122298,3.0534591,4327.3,4324.2,0.8764]
[1759350122299,1.03991,4325.2,4324.2,0.8764]
[1759350122498,0.416,4324.8,4324.6,2.1596]
[1759350122701,8.74520024,4324.7,4324.6,2.85305495]
[1759350122907,8.74518535,4324.7,4324.6,1.36595495]
[1759350123106,8.2078,4324.7,4324.6,1.36595495]
[1759350123308,8.2078,4324.7,4324.6,0.2692342]
[1759350123604,8.79031129,4324.7,4324.6,0.2692342]
[1759350124402,0.78092,4324.6,4324.5,9.21e-06]
[1759350124608,1.95643129,4324.6,4324.5,9.21e-06]
[1759350125409,1.95643129,4324.6,4324.5,0.00200368]
[1759350125906,2.5047,4324.1,4323.5,0.5102]
[1759350126099,4.53431,4323.6,4323.5,2.2643]
[1759350126303,5.42181,4323.6,4323.5,2.5303]
[1759350126498,5.42181,4323.6,4323.5,1.6526]
[1759350126698,6.12861,4323.6,4323.5,0.7762]
[1759350126907,6.13093622,4323.6,4323.5,1.6544247]
[1759350127108,5.42413622,4323.6,4323.5,1.6544247]
[1759350127311,4.53663622,4323.6,4323.5,2.5321247]
[1759350127607,9.25713622,4323.6,4317.2,225.322]
[1759350127805,1.2866,4319.7,4318.5,0.4709]
[1759350128003,3.2078,4319.4,4318.7,1.2832]
[1759350128205,3.2078,4319.4,4319.0,0.4709]
[1759350128409,3.62432,4319.4,4319.1,1.2832]
[1759350128607,3.62647961,4319.4,4319.2,0.279]
[1759350128806,3.62647961,4319.4,4319.3,1.2832]
[1759350129211,4.91307961,4319.4,4319.3,1.2832]
[1759350129412,4.91307961,4319.4,4319.3,42.0832]
[1759350129911,3.20995961,4319.4,4319.3,42.0832]
[1759350130313,0.00215961,4319.4,4319.3,47.0832]
[1759350131812,1.2866,4317.4,4317.2,0.28]
[1759350132015,3.7476,4318.0,4317.2,0.28]
[1759350132320,1.2866,4318.3,4317.3,40.8]
[1759350132506,1.2866,4318.3,4317.3,45.8]
[1759350132706,3.7476,4318.5,4317.4,5.0]
[1759350132907,3.7476,4318.5,4317.5,0.291]
[1759350133516,1.19941808,4319.4,4318.4,3.2078]
[1759350133707,0.5398,4319.5,4319.1,3.2078]
[1759350134020,0.5398,4319.5,4319.2,36.373]
[1759350134618,0.5421168,4319.5,4319.2,36.373]
[1759350135618,1.2866,4320.2,4319.2,36.373]
[1759350135816,0.5398,4320.5,4319.6,3.2078]
[1759350136025,1.2866,4319.9,4319.7,0.292]
[1759350136627,1.28901551,4319.9,4319.7,0.292]
[1759350137328,1.2866,4319.8,4319.7,0.292]
[1759350137828,1.2866,4319.8,4319.7,41.092]
[1759350138623,1.2866,4319.8,4319.7,40.8]
[1759350138828,1.2866,4319.7,4319.5,0.292]
[1759350139024,6.2866,4319.6,4319.5,0.292]
[1759350139225,0.5398,4318.5,4318.3,3.2078]
[1759350139428,1.2866,4318.4,4318.3,3.2078]